[Event "Live Chess"]
[Site "Chess.com"]
[Date "2023.05.20"]
[Round "-"]
[White "kevinmilleruk"]
[Black "KajusM"]
[Result "0-1"]
[WhiteElo "1113"]
[BlackElo "2284"]
[TimeControl "300"]
[EndTime "12:08:02 PDT"]
[Termination "KajusM won by resignation"]

1. c4 {[%clk 0:04:59.4]} 1... e5 {[%clk 0:04:58.8]} 2. Nc3 {[%clk 0:04:57.8]}
2... Bc5 {[%clk 0:04:57]} 3. g3 {[%clk 0:04:55.1]} 3... Nf6 {[%clk 0:04:54.1]}
4. Bg2 {[%clk 0:04:54.1]} 4... O-O {[%clk 0:04:52.9]} 5. d3 {[%clk 0:04:51.8]}
5... d6 {[%clk 0:04:52.1]} 6. Bg5 {[%clk 0:04:50.7]} 6... Nc6 {[%clk 0:04:51.5]}
7. Nf3 {[%clk 0:04:47.4]} 7... Be6 {[%clk 0:04:49.1]} 8. O-O {[%clk 0:04:45.4]}
8... Qd7 {[%clk 0:04:47.9]} 9. e3 {[%clk 0:04:39.3]} 9... Bh3 {[%clk 0:04:45]}
10. a3 {[%clk 0:04:38]} 10... a5 {[%clk 0:04:42.4]} 11. b4 {[%clk 0:04:35.1]}
11... axb4 {[%clk 0:04:42.3]} 12. axb4 {[%clk 0:04:33.7]} 12... Bxb4 {[%clk
0:04:40.5]} 13. Rxa8 {[%clk 0:04:32.1]} 13... Rxa8 {[%clk 0:04:38.8]} 14. Bxf6
{[%clk 0:04:30.4]} 14... Bxc3 {[%clk 0:04:37.3]} 15. Bh4 {[%clk 0:04:23.5]}
15... Bxg2 {[%clk 0:04:33.2]} 16. Kxg2 {[%clk 0:04:21.7]} 16... f6 {[%clk
0:04:27.1]} 17. Qb3 {[%clk 0:04:19.8]} 17... Bb4 {[%clk 0:04:25.6]} 18. d4
{[%clk 0:04:15.9]} 18... e4 {[%clk 0:04:23.7]} 19. Ng1 {[%clk 0:04:09.8]} 19...
Ra3 {[%clk 0:04:18]} 20. Qb2 {[%clk 0:04:04.9]} 20... g5 {[%clk 0:04:15.1]} 21.
d5 {[%clk 0:04:02.3]} 21... Bc5 {[%clk 0:03:56.8]} 22. dxc6 {[%clk 0:03:57.7]}
22... bxc6 {[%clk 0:03:55.4]} 23. Bxg5 {[%clk 0:03:45.9]} 23... fxg5 {[%clk
0:03:53.9]} 24. Qb8+ {[%clk 0:03:45.5]} 24... Kg7 {[%clk 0:03:50.4]} 25. Qb2+
{[%clk 0:03:44.1]} 25... Kf7 {[%clk 0:03:49.1]} 26. Nh3 {[%clk 0:03:39.6]} 26...
Qf5 {[%clk 0:03:46.2]} 27. f4 {[%clk 0:03:26.7]} 27... g4 {[%clk 0:03:42.6]} 28.
Ng5+ {[%clk 0:03:13.5]} 28... Kg6 {[%clk 0:03:41.5]} 29. Qh8 {[%clk 0:03:03.4]}
29... Kh6 {[%clk 0:03:34.4]} 30. Qe8 {[%clk 0:02:29.1]} 30... Ra2+ {[%clk
0:03:22.3]} 31. Rf2 {[%clk 0:02:25.8]} 31... Rxf2+ {[%clk 0:03:19.4]} 32. Kxf2
{[%clk 0:02:24.4]} 32... d5 {[%clk 0:03:16.9]} 33. cxd5 {[%clk 0:02:14]} 33...
cxd5 {[%clk 0:03:12.2]} 34. Nf7+ {[%clk 0:02:12.2]} 34... Kg7 {[%clk 0:03:07.8]}
35. Ne5 {[%clk 0:02:01.7]} 35... d4 {[%clk 0:03:03.3]} 36. exd4 {[%clk
0:01:54.2]} 36... Bxd4+ {[%clk 0:03:01.9]} 37. Kg2 {[%clk 0:01:42.4]} 37... Bxe5
{[%clk 0:02:58.8]} 38. Qxe5+ {[%clk 0:01:33.1]} 38... Qxe5 {[%clk 0:02:57.6]}
39. fxe5 {[%clk 0:01:32.1]} 39... Kf7 {[%clk 0:02:57.5]} 40. Kf2 {[%clk
0:01:31.4]} 40... Ke6 {[%clk 0:02:57.4]} 41. Ke3 {[%clk 0:01:30.6]} 41... Kxe5
{[%clk 0:02:57.3]} 42. Ke2 {[%clk 0:01:24.1]} 42... Kd4 {[%clk 0:02:56.3]} 43.
Kf2 {[%clk 0:01:22.8]} 43... Kd3 {[%clk 0:02:55.2]} 44. Ke1 {[%clk 0:01:21.4]}
44... Ke3 {[%clk 0:02:53.5]} 45. Kf1 {[%clk 0:01:19.9]} 45... Kf3 {[%clk
0:02:53.4]} 46. Ke1 {[%clk 0:01:17.1]} 46... e3 {[%clk 0:02:53.3]} 47. Kf1
{[%clk 0:01:15.8]} 47... e2+ {[%clk 0:02:53.2]} 48. Ke1 {[%clk 0:01:14.2]} 48...
c5 {[%clk 0:02:53.1]} 49. Kd2 {[%clk 0:01:11.2]} 49... c4 {[%clk 0:02:53]} 50.
Ke1 {[%clk 0:01:08.5]} 50... c3 {[%clk 0:02:52.9]} 51. h4 {[%clk 0:01:02.1]}
51... c2 {[%clk 0:02:52.8]} 52. Kd2 {[%clk 0:01:00.1]} 52... c1=Q+ {[%clk
0:02:52.7]} 53. Kxc1 {[%clk 0:00:58.9]} 53... e1=Q+ {[%clk 0:02:52.6]} 54. Kc2
{[%clk 0:00:58]} 54... Qxg3 {[%clk 0:02:52.5]} 55. Kc3 {[%clk 0:00:56.6]} 55...
Qxh4 {[%clk 0:02:52.4]} 0-1

[Event "Live Chess"]
[Site "Chess.com"]
[Date "2023.05.20"]
[Round "-"]
[White "AttackingSnowLeopard"]
[Black "booktrunk"]
[Result "1-0"]
[WhiteElo "2043"]
[BlackElo "1330"]
[TimeControl "300"]
[EndTime "12:08:08 PDT"]
[Termination "AttackingSnowLeopard won by resignation"]

1. d4 {[%clk 0:04:58.7]} 1... d5 {[%clk 0:04:57.3]} 2. c4 {[%clk 0:04:57.7]}
2... dxc4 {[%clk 0:04:55.2]} 3. Nf3 {[%clk 0:04:55.9]} 3... b6 {[%clk
0:04:49.5]} 4. e3 {[%clk 0:04:54.7]} 4... Ba6 {[%clk 0:04:48]} 5. Nc3 {[%clk
0:04:53]} 5... e6 {[%clk 0:04:45.2]} 6. Ne5 {[%clk 0:04:46.2]} 6... b5 {[%clk
0:04:41]} 7. Qf3 {[%clk 0:04:43.4]} 7... f6 {[%clk 0:04:38.5]} 8. Qh5+ {[%clk
0:04:37.7]} 8... Ke7 {[%clk 0:04:34.9]} 9. Qf7+ {[%clk 0:04:36]} 9... Kd6 {[%clk
0:04:32.8]} 10. Ne4+ {[%clk 0:04:24.7]} 10... Kd5 {[%clk 0:04:26.6]} 11. Ng5
{[%clk 0:04:02.2]} 11... fxg5 {[%clk 0:04:22.1]} 12. Be2 {[%clk 0:03:56.3]}
12... Qe7 {[%clk 0:04:17.1]} 13. Bf3+ {[%clk 0:03:54.4]} 13... Kd6 {[%clk
0:04:13.2]} 14. Qh5 {[%clk 0:03:45.9]} 14... Nf6 {[%clk 0:04:01.6]} 15. Qh3
{[%clk 0:03:41.6]} 15... Nc6 {[%clk 0:03:56.7]} 16. Nxc6 {[%clk 0:03:38.1]}
16... Qd7 {[%clk 0:03:49.9]} 17. Qg3+ {[%clk 0:03:32.5]} 1-0

[Event "Live Chess"]
[Site "Chess.com"]
[Date "2023.05.20"]
[Round "-"]
[White "ACx04"]
[Black "smoggyrabbit"]
[Result "0-1"]
[WhiteElo "429"]
[BlackElo "1619"]
[TimeControl "300"]
[EndTime "12:08:10 PDT"]
[Termination "smoggyrabbit won by checkmate"]

1. e4 {[%clk 0:04:59.2]} 1... e6 {[%clk 0:04:59]} 2. Bc4 {[%clk 0:04:58.5]} 2...
d5 {[%clk 0:04:57.8]} 3. Nf3 {[%clk 0:04:58.1]} 3... dxc4 {[%clk 0:04:56.4]} 4.
Ne5 {[%clk 0:04:57]} 4... Nf6 {[%clk 0:04:46.3]} 5. Qf3 {[%clk 0:04:55.6]} 5...
b6 {[%clk 0:04:28.4]} 6. d3 {[%clk 0:04:50.2]} 6... cxd3 {[%clk 0:04:26.5]} 7.
cxd3 {[%clk 0:04:49]} 7... Bb7 {[%clk 0:04:23.8]} 8. Bg5 {[%clk 0:04:45.6]} 8...
Be7 {[%clk 0:04:16.3]} 9. O-O {[%clk 0:04:36.8]} 9... O-O {[%clk 0:04:00.6]} 10.
Bxf6 {[%clk 0:04:34.7]} 10... Bxf6 {[%clk 0:04:00.5]} 11. Ng4 {[%clk 0:04:28.7]}
11... Bxb2 {[%clk 0:03:57.3]} 12. Nc3 {[%clk 0:04:26.6]} 12... Bxc3 {[%clk
0:03:55]} 13. Rac1 {[%clk 0:04:25.2]} 13... Bd4 {[%clk 0:03:46.7]} 14. Rc4
{[%clk 0:04:19.3]} 14... c5 {[%clk 0:03:43.2]} 15. h4 {[%clk 0:04:07.8]} 15...
Qxh4 {[%clk 0:03:37.9]} 16. g3 {[%clk 0:04:05.3]} 16... Qe7 {[%clk 0:03:26]} 17.
a4 {[%clk 0:03:58.7]} 17... Nd7 {[%clk 0:03:24.8]} 18. Kg2 {[%clk 0:03:51.1]}
18... Nf6 {[%clk 0:03:21.8]} 19. Nxf6+ {[%clk 0:03:49.4]} 19... Qxf6 {[%clk
0:03:20.8]} 20. Qxf6 {[%clk 0:03:48.4]} 20... Bxf6 {[%clk 0:03:19.8]} 21. Rh1
{[%clk 0:03:45.9]} 21... Ba6 {[%clk 0:03:16.4]} 22. Rcc1 {[%clk 0:03:43]} 22...
Bxd3 {[%clk 0:03:15.3]} 23. Rcd1 {[%clk 0:03:41.6]} 23... Bxe4+ {[%clk
0:03:14.2]} 24. f3 {[%clk 0:03:40.2]} 24... Bc6 {[%clk 0:03:11.8]} 25. Rde1
{[%clk 0:03:35.5]} 25... Rad8 {[%clk 0:03:09.5]} 26. Kh3 {[%clk 0:03:34.5]}
26... Bxf3 {[%clk 0:03:05.2]} 27. Ref1 {[%clk 0:03:32.8]} 27... Bxh1 {[%clk
0:03:02.6]} 28. Rxh1 {[%clk 0:03:31.6]} 28... Rd3 {[%clk 0:02:59]} 29. Kg4
{[%clk 0:03:25.5]} 29... Rfd8 {[%clk 0:02:56.6]} 30. Rh3 {[%clk 0:03:24]} 30...
R8d4+ {[%clk 0:02:54.8]} 31. Kh5 {[%clk 0:03:22.9]} 31... g6+ {[%clk 0:02:48.6]}
32. Kh6 {[%clk 0:03:21.2]} 32... Rxg3 {[%clk 0:02:40.9]} 33. Rxg3 {[%clk
0:03:05.8]} 33... Rh4# {[%clk 0:02:39.7]} 0-1

[Event "Live Chess"]
[Site "Chess.com"]
[Date "2023.05.20"]
[Round "-"]
[White "Ayush_prahlad_Gupta"]
[Black "zdanevych"]
[Result "1-0"]
[WhiteElo "1794"]
[BlackElo "1499"]
[TimeControl "300"]
[EndTime "12:08:12 PDT"]
[Termination "Ayush_prahlad_Gupta won by checkmate"]

1. e4 {[%clk 0:04:56.2]} 1... c5 {[%clk 0:04:58.5]} 2. Nc3 {[%clk 0:04:56]} 2...
e6 {[%clk 0:04:57.8]} 3. d4 {[%clk 0:04:52.8]} 3... d5 {[%clk 0:04:56.8]} 4.
exd5 {[%clk 0:04:50.9]} 4... exd5 {[%clk 0:04:56.3]} 5. dxc5 {[%clk 0:04:50.4]}
5... Bxc5 {[%clk 0:04:55.1]} 6. Nf3 {[%clk 0:04:46.9]} 6... Be6 {[%clk 0:04:53]}
7. Bf4 {[%clk 0:04:46.4]} 7... Nf6 {[%clk 0:04:51.7]} 8. Bb5+ {[%clk 0:04:45.5]}
8... Nc6 {[%clk 0:04:50.7]} 9. Ne5 {[%clk 0:04:44.6]} 9... Qb6 {[%clk
0:04:48.1]} 10. Nxc6 {[%clk 0:04:43.2]} 10... bxc6 {[%clk 0:04:48]} 11. Bd3
{[%clk 0:04:40.9]} 11... Bxf2+ {[%clk 0:04:43.9]} 12. Kf1 {[%clk 0:04:40.2]}
12... Bg4 {[%clk 0:04:09.9]} 13. Be2 {[%clk 0:04:34.2]} 13... h5 {[%clk
0:03:57.9]} 14. Bxg4 {[%clk 0:04:28.7]} 14... Nxg4 {[%clk 0:03:56.1]} 15. Qe2+
{[%clk 0:04:27.7]} 15... Kf8 {[%clk 0:03:49.5]} 16. h3 {[%clk 0:04:23.9]} 16...
Ne3+ {[%clk 0:03:37.6]} 17. Bxe3 {[%clk 0:04:18.1]} 17... Qxe3 {[%clk
0:03:37.5]} 18. Qxf2 {[%clk 0:04:17.4]} 18... Qe5 {[%clk 0:03:12.4]} 19. Re1
{[%clk 0:04:12.7]} 19... Qd6 {[%clk 0:03:07.1]} 20. Kg1 {[%clk 0:04:04.1]} 20...
g6 {[%clk 0:02:59.2]} 21. Rf1 {[%clk 0:04:01.5]} 21... Qd7 {[%clk 0:02:49.7]}
22. Qf6 {[%clk 0:03:56.8]} 22... Qe7 {[%clk 0:02:46.2]} 23. Qxh8# {[%clk
0:03:53.2]} 1-0

[Event "Live Chess"]
[Site "Chess.com"]
[Date "2023.05.20"]
[Round "-"]
[White "jameskwong"]
[Black "ReceptiveCamel"]
[Result "1-0"]
[WhiteElo "2141"]
[BlackElo "640"]
[TimeControl "300"]
[EndTime "12:08:14 PDT"]
[Termination "jameskwong won by checkmate"]

1. d4 {[%clk 0:04:58.7]} 1... d5 {[%clk 0:04:54.6]} 2. Bf4 {[%clk 0:04:53.7]}
2... Bf5 {[%clk 0:04:51.4]} 3. e3 {[%clk 0:04:50.1]} 3... Nc6 {[%clk 0:04:50.7]}
4. c4 {[%clk 0:04:42.4]} 4... dxc4 {[%clk 0:04:46.4]} 5. Bxc4 {[%clk 0:04:40.5]}
5... Nf6 {[%clk 0:04:45.8]} 6. Qb3 {[%clk 0:04:36.5]} 6... e6 {[%clk 0:04:41.3]}
7. Qxb7 {[%clk 0:04:34.2]} 7... Bxb1 {[%clk 0:04:34.6]} 8. Qxc6+ {[%clk
0:04:30.5]} 8... Ke7 {[%clk 0:04:32.3]} 9. Rxb1 {[%clk 0:04:16.6]} 9... Nh5
{[%clk 0:04:25]} 10. Bg5+ {[%clk 0:04:10.2]} 10... f6 {[%clk 0:04:18.5]} 11.
Qxe6# {[%clk 0:04:08.2]} 1-0

[Event "Live Chess"]
[Site "Chess.com"]
[Date "2023.05.20"]
[Round "-"]
[White "JackRudd"]
[Black "Chesscoach_Golichenko"]
[Result "1-0"]
[WhiteElo "2479"]
[BlackElo "2648"]
[TimeControl "300"]
[EndTime "12:08:24 PDT"]
[Termination "JackRudd won by resignation"]

1. d4 {[%clk 0:04:58]} 1... Nf6 {[%clk 0:04:58]} 2. c4 {[%clk 0:04:56.7]} 2...
e6 {[%clk 0:04:54.5]} 3. Nc3 {[%clk 0:04:55.1]} 3... Bb4 {[%clk 0:04:52.1]} 4.
f3 {[%clk 0:04:52.8]} 4... d5 {[%clk 0:04:46.2]} 5. a3 {[%clk 0:04:50.2]} 5...
Bxc3+ {[%clk 0:04:44.6]} 6. bxc3 {[%clk 0:04:49.4]} 6... c5 {[%clk 0:04:43.5]}
7. cxd5 {[%clk 0:04:48.5]} 7... exd5 {[%clk 0:04:42.1]} 8. e3 {[%clk 0:04:47.1]}
8... O-O {[%clk 0:04:41]} 9. Bd3 {[%clk 0:04:45.4]} 9... Re8 {[%clk 0:04:40.1]}
10. Ne2 {[%clk 0:04:44.2]} 10... Nc6 {[%clk 0:04:37.2]} 11. O-O {[%clk
0:04:43.1]} 11... c4 {[%clk 0:04:36.3]} 12. Bb1 {[%clk 0:04:40.8]} 12... b5
{[%clk 0:04:35.7]} 13. Ng3 {[%clk 0:04:38.8]} 13... a5 {[%clk 0:04:34.2]} 14. e4
{[%clk 0:04:37.8]} 14... Rb8 {[%clk 0:04:29]} 15. e5 {[%clk 0:04:36.3]} 15...
Nd7 {[%clk 0:04:24.9]} 16. f4 {[%clk 0:04:34.6]} 16... b4 {[%clk 0:04:14.4]} 17.
f5 {[%clk 0:04:26.2]} 17... bxc3 {[%clk 0:04:06.9]} 18. f6 {[%clk 0:04:25]}
18... g6 {[%clk 0:04:04]} 19. Nf5 {[%clk 0:04:17.3]} 19... Qb6 {[%clk
0:03:29.6]} 20. Kh1 {[%clk 0:04:06]} 20... Ndxe5 {[%clk 0:03:15.4]} 21. Nh6+
{[%clk 0:04:03.5]} 21... Kf8 {[%clk 0:03:08.5]} 22. dxe5 {[%clk 0:04:02.3]}
22... d4 {[%clk 0:02:59.5]} 23. Bf4 {[%clk 0:03:55.6]} 23... Nxe5 {[%clk
0:02:55.6]} 24. Be4 {[%clk 0:03:46.8]} 24... d3 {[%clk 0:02:49.9]} 25. Qc1
{[%clk 0:03:27.4]} 25... Qd4 {[%clk 0:02:40.9]} 26. Be3 {[%clk 0:03:15.2]} 26...
Qd6 {[%clk 0:02:25.1]} 27. Qxc3 {[%clk 0:03:11.5]} 27... Bb7 {[%clk 0:02:11.9]}
28. Bxb7 {[%clk 0:03:08.6]} 28... Rxb7 {[%clk 0:02:11.8]} 29. Qxa5 {[%clk
0:03:04.9]} 29... Rc8 {[%clk 0:02:07.1]} 30. Bf4 {[%clk 0:03:01.1]} 30... Qc5
{[%clk 0:02:04.5]} 31. Qxc5+ {[%clk 0:02:56]} 31... Rxc5 {[%clk 0:02:04.4]} 32.
Rae1 {[%clk 0:02:53.8]} 32... Rbb5 {[%clk 0:01:40.5]} 33. Ng4 {[%clk 0:02:41.3]}
33... d2 {[%clk 0:01:36.6]} 34. Bh6+ {[%clk 0:02:39.8]} 34... Ke8 {[%clk
0:01:23.8]} 35. Bxd2 {[%clk 0:02:38.1]} 1-0

[Event "Live Chess"]
[Site "Chess.com"]
[Date "2023.05.20"]
[Round "-"]
[White "olahgito"]
[Black "alanmike75"]
[Result "0-1"]
[WhiteElo "728"]
[BlackElo "1510"]
[TimeControl "300"]
[EndTime "12:08:41 PDT"]
[Termination "alanmike75 won on time"]

1. e4 {[%clk 0:04:58.5]} 1... e5 {[%clk 0:04:58.2]} 2. Nf3 {[%clk 0:04:57.4]}
2... d6 {[%clk 0:04:56.7]} 3. d4 {[%clk 0:04:55.6]} 3... exd4 {[%clk 0:04:55.3]}
4. Nxd4 {[%clk 0:04:55.5]} 4... Nf6 {[%clk 0:04:53.7]} 5. Bg5 {[%clk 0:04:53.2]}
5... Be7 {[%clk 0:04:52.4]} 6. Nc3 {[%clk 0:04:50.5]} 6... O-O {[%clk
0:04:49.1]} 7. f4 {[%clk 0:04:46.2]} 7... h6 {[%clk 0:04:45.8]} 8. Bxf6 {[%clk
0:04:45.3]} 8... Bxf6 {[%clk 0:04:44.5]} 9. Nf3 {[%clk 0:04:41.3]} 9... Re8
{[%clk 0:04:41.3]} 10. Bd3 {[%clk 0:04:39.1]} 10... Nc6 {[%clk 0:04:36.1]} 11.
O-O {[%clk 0:04:35.1]} 11... Bg4 {[%clk 0:04:34.3]} 12. a4 {[%clk 0:04:17.1]}
12... Nd4 {[%clk 0:04:31.8]} 13. h3 {[%clk 0:04:00]} 13... Nxf3+ {[%clk
0:04:29.7]} 14. gxf3 {[%clk 0:03:59.1]} 14... Bxh3 {[%clk 0:04:28.1]} 15. Rf2
{[%clk 0:03:56.3]} 15... Bd7 {[%clk 0:04:22.7]} 16. Qd2 {[%clk 0:03:52.9]} 16...
Bd4 {[%clk 0:04:21.1]} 17. Kf1 {[%clk 0:03:20.5]} 17... Bxf2 {[%clk 0:04:17.9]}
18. Qxf2 {[%clk 0:03:20.4]} 18... c6 {[%clk 0:04:08]} 19. Ke2 {[%clk 0:02:25.4]}
19... f5 {[%clk 0:04:04.4]} 20. b4 {[%clk 0:02:07.6]} 20... fxe4 {[%clk
0:03:59.8]} 21. fxe4 {[%clk 0:02:05.5]} 21... Qf6 {[%clk 0:03:58.4]} 22. Kd2
{[%clk 0:02:02.5]} 22... c5 {[%clk 0:03:52.1]} 23. bxc5 {[%clk 0:01:52.4]} 23...
dxc5 {[%clk 0:03:49.4]} 24. Qxc5 {[%clk 0:01:50.7]} 24... Rac8 {[%clk
0:03:43.2]} 25. Qb4 {[%clk 0:01:49.5]} 25... Bc6 {[%clk 0:03:30.9]} 26. Bc4+
{[%clk 0:01:18.8]} 26... Kh8 {[%clk 0:03:29]} 27. Ra3 {[%clk 0:01:13]} 27...
Qxf4+ {[%clk 0:03:26.9]} 28. Kd3 {[%clk 0:01:09.8]} 28... Rcd8+ {[%clk
0:03:21.2]} 29. Bd5 {[%clk 0:00:58.9]} 29... Bxd5 {[%clk 0:03:15.8]} 30. Nxd5
{[%clk 0:00:58]} 30... Rxd5+ {[%clk 0:03:11.7]} 31. Kc4 {[%clk 0:00:56.9]} 31...
Qxe4+ {[%clk 0:03:07.6]} 32. Kb3 {[%clk 0:00:55.1]} 32... Qxb4+ {[%clk
0:03:02.3]} 33. Kxb4 {[%clk 0:00:55]} 33... Re4+ {[%clk 0:02:59.8]} 34. Kb3
{[%clk 0:00:20.1]} 34... Re3+ {[%clk 0:02:55.6]} 35. Kb2 {[%clk 0:00:18]} 35...
Rxa3 {[%clk 0:02:53.8]} 36. Kxa3 {[%clk 0:00:17.9]} 36... a5 {[%clk 0:02:52.4]}
37. Kb3 {[%clk 0:00:16.6]} 37... h5 {[%clk 0:02:50.1]} 38. Kc4 {[%clk
0:00:15.5]} 38... Rd1 {[%clk 0:02:47.5]} 39. Kb5 {[%clk 0:00:14.4]} 39... h4
{[%clk 0:02:44.8]} 40. Kxa5 {[%clk 0:00:13.4]} 40... h3 {[%clk 0:02:43.7]} 41.
Kb6 {[%clk 0:00:12.1]} 41... Rb1+ {[%clk 0:02:42.2]} 42. Ka7 {[%clk 0:00:10.2]}
42... h2 {[%clk 0:02:39.9]} 43. c4 {[%clk 0:00:09.6]} 43... h1=Q {[%clk
0:02:37.4]} 44. c5 {[%clk 0:00:08.3]} 44... Qc6 {[%clk 0:02:35]} 45. a5 {[%clk
0:00:06.4]} 45... Qxc5+ {[%clk 0:02:33.3]} 46. Kb8 {[%clk 0:00:04.2]} 46... g5
{[%clk 0:02:23.9]} 0-1

[Event "Live Chess"]
[Site "Chess.com"]
[Date "2023.05.20"]
[Round "-"]
[White "Geomorph"]
[Black "1600x"]
[Result "1/2-1/2"]
[WhiteElo "1239"]
[BlackElo "1693"]
[TimeControl "300"]
[EndTime "12:08:46 PDT"]
[Termination "Game drawn by repetition"]

1. e4 {[%clk 0:04:58.7]} 1... e5 {[%clk 0:04:57.8]} 2. Nf3 {[%clk 0:04:57.7]}
2... Qe7 {[%clk 0:04:53.8]} 3. Bc4 {[%clk 0:04:52.6]} 3... Nf6 {[%clk
0:04:53.7]} 4. O-O {[%clk 0:04:36]} 4... h6 {[%clk 0:04:50.9]} 5. d4 {[%clk
0:04:31.7]} 5... d6 {[%clk 0:04:49.5]} 6. dxe5 {[%clk 0:04:27.4]} 6... dxe5
{[%clk 0:04:42.8]} 7. Nc3 {[%clk 0:04:24]} 7... Nc6 {[%clk 0:04:41]} 8. Nd5
{[%clk 0:04:21.4]} 8... Qd8 {[%clk 0:04:39.4]} 9. Nxf6+ {[%clk 0:04:07.6]} 9...
Qxf6 {[%clk 0:04:36.8]} 10. Qd3 {[%clk 0:03:30]} 10... Bg4 {[%clk 0:04:26.4]}
11. Qb3 {[%clk 0:02:56]} 11... Bxf3 {[%clk 0:04:04.2]} 12. gxf3 {[%clk
0:02:45.9]} 12... Rb8 {[%clk 0:03:56.9]} 13. Bd5 {[%clk 0:02:32.6]} 13... Nd4
{[%clk 0:03:55.4]} 14. Qa4+ {[%clk 0:02:14.6]} 14... Nc6 {[%clk 0:03:52.7]} 15.
Be3 {[%clk 0:01:59.4]} 15... a6 {[%clk 0:03:39.7]} 16. Qb3 {[%clk 0:01:55.6]}
16... Na5 {[%clk 0:03:34.3]} 17. Qa4+ {[%clk 0:01:47]} 17... Nc6 {[%clk
0:03:31.4]} 18. Qb3 {[%clk 0:01:36.8]} 18... Na5 {[%clk 0:03:27]} 19. Qa4+
{[%clk 0:01:28.7]} 19... Nc6 {[%clk 0:03:22.6]} 1/2-1/2

[Event "Live Chess"]
[Site "Chess.com"]
[Date "2023.05.20"]
[Round "-"]
[White "OceanFloater"]
[Black "TDCMF"]
[Result "1-0"]
[WhiteElo "979"]
[BlackElo "360"]
[TimeControl "300"]
[EndTime "12:08:46 PDT"]
[Termination "OceanFloater won by checkmate"]

1. e4 {[%clk 0:04:57.3]} 1... e5 {[%clk 0:04:57.4]} 2. Bc4 {[%clk 0:04:56.6]}
2... Bc5 {[%clk 0:04:55.8]} 3. Qf3 {[%clk 0:04:54.9]} 3... Nf6 {[%clk
0:04:50.3]} 4. Ne2 {[%clk 0:04:49.8]} 4... b5 {[%clk 0:04:47.1]} 5. Bb3 {[%clk
0:04:47.8]} 5... h5 {[%clk 0:04:36.9]} 6. d4 {[%clk 0:04:45.9]} 6... exd4 {[%clk
0:04:35.3]} 7. e5 {[%clk 0:04:38.7]} 7... Rh6 {[%clk 0:04:22.7]} 8. exf6 {[%clk
0:04:35.4]} 8... Rxf6 {[%clk 0:04:21.9]} 9. Qxa8 {[%clk 0:04:33.3]} 9... Bb7
{[%clk 0:04:11.8]} 10. Qxb7 {[%clk 0:04:30.5]} 10... d6 {[%clk 0:03:47.2]} 11.
Bg5 {[%clk 0:04:27.1]} 11... Rf5 {[%clk 0:03:36.8]} 12. Bxd8 {[%clk 0:04:25]}
12... Kxd8 {[%clk 0:03:32.4]} 13. Qxb8+ {[%clk 0:04:23.3]} 13... Kd7 {[%clk
0:03:31.2]} 14. Qxb5+ {[%clk 0:04:22.5]} 14... c6 {[%clk 0:03:27.7]} 15. Qb7+
{[%clk 0:04:21]} 15... Ke8 {[%clk 0:03:26.6]} 16. Qxc6+ {[%clk 0:04:14.3]} 16...
Kd8 {[%clk 0:03:25.2]} 17. Qa8+ {[%clk 0:04:05.4]} 17... Kd7 {[%clk 0:03:24.3]}
18. Qb7+ {[%clk 0:04:02.6]} 18... Ke8 {[%clk 0:03:23]} 19. Qc8+ {[%clk
0:04:01.3]} 19... Ke7 {[%clk 0:03:20.9]} 20. Qxf5 {[%clk 0:04:00.9]} 20... f6
{[%clk 0:03:19.2]} 21. Qxh5 {[%clk 0:03:58.9]} 21... Bb4+ {[%clk 0:03:14.3]} 22.
c3 {[%clk 0:03:57.1]} 22... Bxc3+ {[%clk 0:03:11.3]} 23. Nbxc3 {[%clk
0:03:56.1]} 23... dxc3 {[%clk 0:03:10.4]} 24. Nxc3 {[%clk 0:03:55.8]} 24... d5
{[%clk 0:03:09.3]} 25. Bxd5 {[%clk 0:03:53.9]} 25... g6 {[%clk 0:03:08.2]} 26.
Qxg6 {[%clk 0:03:52.6]} 26... Kd6 {[%clk 0:03:07.3]} 27. Rd1 {[%clk 0:03:51.5]}
27... Kc5 {[%clk 0:03:06.2]} 28. Qxf6 {[%clk 0:03:47]} 28... a5 {[%clk
0:03:05.6]} 29. Qd4+ {[%clk 0:03:46]} 29... Kd6 {[%clk 0:03:04.5]} 30. Bb3+
{[%clk 0:03:41.9]} 30... Kc6 {[%clk 0:03:03]} 31. Qd5+ {[%clk 0:03:40.7]} 31...
Kb6 {[%clk 0:02:58.8]} 32. Qd6+ {[%clk 0:03:37.4]} 32... Kb7 {[%clk 0:02:57.9]}
33. Qd7+ {[%clk 0:03:31.6]} 33... Kb6 {[%clk 0:02:56.7]} 34. Rd6+ {[%clk
0:03:31.2]} 34... Kc5 {[%clk 0:02:55.3]} 35. Qc6+ {[%clk 0:03:30.7]} 35... Kb4
{[%clk 0:02:53.9]} 36. Qb5# {[%clk 0:03:27.2]} 1-0

[Event "Live Chess"]
[Site "Chess.com"]
[Date "2023.05.20"]
[Round "-"]
[White "ameetghasi100"]
[Black "brownbear2704"]
[Result "1-0"]
[WhiteElo "2705"]
[BlackElo "1217"]
[TimeControl "300"]
[EndTime "12:08:56 PDT"]
[Termination "ameetghasi100 won by checkmate"]

1. d4 {[%clk 0:04:58.8]} 1... d5 {[%clk 0:04:56.9]} 2. c3 {[%clk 0:04:58.7]}
2... c6 {[%clk 0:04:49.7]} 3. Nf3 {[%clk 0:04:58.6]} 3... Bg4 {[%clk 0:04:36.2]}
4. Ne5 {[%clk 0:04:57]} 4... Bh5 {[%clk 0:04:21.3]} 5. g4 {[%clk 0:04:55.2]}
5... Bg6 {[%clk 0:04:18.1]} 6. h4 {[%clk 0:04:54.8]} 6... Be4 {[%clk 0:04:07.6]}
7. f3 {[%clk 0:04:51.2]} 7... Bxb1 {[%clk 0:04:03.8]} 8. Rxb1 {[%clk 0:04:51.1]}
8... e6 {[%clk 0:04:02.4]} 9. e4 {[%clk 0:04:48.6]} 9... Bd6 {[%clk 0:04:01]}
10. exd5 {[%clk 0:04:47.6]} 10... cxd5 {[%clk 0:03:49.8]} 11. Bb5+ {[%clk
0:04:40.4]} 11... Nd7 {[%clk 0:03:43.8]} 12. Bxd7+ {[%clk 0:04:38.2]} 12... Kf8
{[%clk 0:03:28]} 13. Ba4 {[%clk 0:04:38.1]} 13... Ne7 {[%clk 0:03:24.5]} 14. h5
{[%clk 0:04:34.3]} 14... h6 {[%clk 0:03:15.8]} 15. Qe2 {[%clk 0:04:33]} 15...
Rc8 {[%clk 0:03:10.6]} 16. Bf4 {[%clk 0:04:27.3]} 16... Qb6 {[%clk 0:02:50.6]}
17. Nd7+ {[%clk 0:04:24.2]} 17... Ke8 {[%clk 0:02:39.1]} 18. Nxb6+ {[%clk
0:04:24.1]} 18... Kd8 {[%clk 0:02:35.6]} 19. Nxc8 {[%clk 0:04:24]} 19... Kxc8
{[%clk 0:02:34.4]} 20. Bxd6 {[%clk 0:04:23.4]} 20... Rd8 {[%clk 0:02:31.5]} 21.
Bh2 {[%clk 0:04:23]} 21... a6 {[%clk 0:02:26.9]} 22. Qe5 {[%clk 0:04:21.4]}
22... b5 {[%clk 0:02:19]} 23. Qc7# {[%clk 0:04:20.6]} 1-0